bitfinex/quotes_ETHUSD_20230117
["timestamp","ask_amount","ask_price","bid_price","bid_amount"]
[1673918711427,0.04338316,1551.5,1551.4,16.13758]
[1673918711646,0.04338316,1551.5,1551.4,9.46179]
[1673918712033,0.04338316,1551.5,1551.4,15.90758]
[1673918712246,0.04338316,1551.5,1551.4,21.24818153]
[1673918714049,0.04338316,1551.5,1551.4,3.016]
[1673918714399,0.04338316,1551.5,1551.4,3.0]
[1673918714719,0.04338316,1551.5,1551.4,6.44579]
[1673918715040,0.04338316,1551.5,1551.4,9.46179]
[1673918715183,0.04338316,1551.5,1551.4,15.90758]
[1673918715398,0.04338316,1551.5,1551.4,16.13758]
[1673918715769,0.04338316,1551.5,1551.4,20.36670534]
[1673918716235,0.04338316,1551.5,1551.4,16.13758]
[1673918716453,0.04338316,1551.5,1551.4,9.46179]
[1673918716774,0.04338316,1551.5,1551.4,15.90758]
[1673918716991,0.04338316,1551.5,1551.4,16.13758]
[1673918717390,0.04338316,1551.5,1551.4,16.78391918]
[1673918717604,0.04338316,1551.5,1551.4,19.7564891]
[1673918717847,0.04338316,1551.5,1551.4,22.87311317]
[1673918718022,0.04338316,1551.5,1551.4,16.78391918]
[1673918718239,0.04338316,1551.5,1551.4,16.13758]
[1673918718655,0.04553826,1551.6,1551.5,1.0]
[1673918718861,0.04553826,1551.6,1551.5,6.34662407]
[1673918719189,0.0048688,1552.1,1551.6,0.64633918]
[1673918719394,0.0048688,1552.1,1551.7,19.56299]
[1673918719603,0.0048688,1552.1,1551.8,3.0]
[1673918719852,0.0048688,1552.1,1551.9,6.44371]
[1673918720126,0.0048688,1552.1,1552.0,3.0]
[1673918720925,0.0048688,1552.1,1552.0,15.88658]
[1673918721241,0.0048688,1552.1,1552.0,14.19510845]
[1673918721435,0.0048688,1552.1,1552.0,12.90058]
[1673918721832,0.0048688,1552.1,1552.0,12.90258]
[1673918722393,0.8268688,1552.1,1552.0,0.016]
[1673918722605,0.0048688,1552.1,1551.9,6.45965]
[1673918722970,0.0048688,1552.1,1551.9,17.95971207]
[1673918723327,0.0048688,1552.1,1552.0,16.11658]
[1673918723497,0.0048688,1552.1,1552.0,20.56220407]
[1673918724461,0.04909811,1552.3,1552.0,20.56220407]
[1673918724656,0.04909811,1552.3,1552.2,1.323]
[1673918724865,0.04909811,1552.3,1552.2,28.75596648]
[1673918725154,0.04909811,1552.3,1552.2,25.76996648]
[1673918725343,0.04909811,1552.3,1552.2,28.77530698]
[1673918725654,0.04909811,1552.9,1552.4,19.3239]
[1673918725813,0.53229811,1552.9,1552.6,14.20744]
[1673918726022,0.04909811,1552.9,1552.6,11.66433719]
[1673918726271,0.4833,1552.8,1552.6,12.99033719]
[1673918726483,0.04909811,1552.9,1552.6,12.99033719]
[1673918726805,0.04909811,1552.9,1552.6,16.10696126]
[1673918726994,0.04909811,1552.9,1552.7,6.44022]
[1673918727168,0.04909811,1552.9,1552.7,0.014]
[1673918727383,0.04909811,1552.9,1552.6,5.22361719]
[1673918728061,0.04909811,1552.9,1552.6,0.014]
[1673918728274,0.04909811,1552.9,1552.5,6.4549]
[1673918729858,0.04909811,1552.9,1552.5,0.014]
[1673918729859,1.0,1552.7,1552.5,0.014]
[1673918730209,1.0,1552.7,1552.4,6.4416]
[1673918730210,0.5833,1552.6,1552.4,6.4416]
[1673918730485,0.5833,1552.6,1552.4,6.4556]
[1673918730699,0.4833,1552.6,1552.4,12.89723]
[1673918730854,0.4833,1552.8,1552.4,12.89723]
[1673918732160,0.53229811,1552.9,1552.4,12.89723]
[1673918732963,1.53229811,1552.9,1552.4,12.89723]
[1673918733186,0.15322981,1552.8,1552.4,12.89723]
[1673918733796,0.64214474,1552.8,1552.4,12.89723]
[1673918734453,0.48891493,1552.8,1552.4,12.89723]
[1673918734848,0.48891493,1552.8,1552.4,6.4556]
[1673918735519,0.97221493,1552.8,1552.4,0.014]
[1673918735746,1.0,1552.7,1552.4,3.0]
[1673918735911,0.1,1552.6,1552.4,3.0]
[1673918739125,1.0,1552.7,1552.4,3.0]
[1673918739969,1.0,1552.7,1552.3,6.50776]
[1673918740178,1.0,1552.7,1552.3,0.014]
[1673918740179,3.69992407,1552.6,1552.3,0.014]
[1673918740332,22.44028407,1552.5,1552.0,0.014]
[1673918740541,22.44028407,1552.5,1551.9,6.45969]
[1673918740542,0.4834,1552.4,1551.9,6.45969]
[1673918740794,9.22670841,1552.4,1551.9,6.45969]
[1673918741012,3.11662407,1552.3,1551.9,0.016]
[1673918741226,1.315,1552.0,1551.7,0.016]
[1673918741538,1.315,1552.0,1551.6,0.15711329]
[1673918741853,1.0,1551.9,1551.6,0.15711329]
[1673918742068,0.1,1551.8,1551.6,0.15711329]
[1673918744469,3.21662407,1551.8,1551.6,0.15711329]
[1673918744699,0.1,1551.8,1551.6,0.15711329]
[1673918745312,0.1,1551.8,1551.6,0.00011329]
[1673918745313,3.11662407,1551.7,1551.6,0.00011329]
[1673918745527,3.11662407,1551.7,1551.1,0.0048688]
[1673918745528,0.30635317,1551.5,1551.1,0.0048688]
[1673918745757,3.11662407,1551.4,1551.1,0.0048688]
[1673918745966,0.39735317,1551.5,1551.1,0.0048688]
[1673918746154,3.11662407,1551.4,1551.1,0.0048688]
[1673918746595,1.0,1551.3,1551.1,0.0048688]
[1673918746827,1.41166241,1551.3,1551.1,0.0048688]
[1673918746999,0.89536241,1551.3,1551.1,0.0048688]
[1673918747221,0.4837,1551.3,1551.1,0.0048688]
[1673918747432,24.1649,1551.4,1551.1,0.0048688]
[1673918747883,23.6812,1551.4,1551.1,6.4518088]
[1673918748099,23.6812,1551.4,1551.1,12.9148388]
[1673918748932,23.6812,1551.4,1551.1,0.0208688]
[1673918748933,26.79782407,1551.4,1551.1,0.0208688]
[1673918749140,26.79782407,1551.4,1551.1,0.0048688]
[1673918749141,2.67978241,1551.3,1551.1,0.0048688]
[1673918749334,23.6812,1551.4,1551.1,6.4518488]
[1673918749543,23.6812,1551.4,1551.1,6.4678488]
[1673918749777,23.6812,1551.4,1551.1,12.9148788]
[1673918750154,23.6812,1551.4,1551.1,6.4678488]
[1673918750819,23.6812,1551.4,1551.1,0.0208688]
[1673918751059,23.6812,1551.4,1551.1,0.0048688]
[1673918751060,5.48474407,1551.3,1551.1,0.0048688]
[1673918751206,11.36704407,1551.2,1551.1,0.0048688]
[1673918751405,11.45804407,1551.2,1551.1,0.0048688]
[1673918751622,6.01142407,1551.2,1551.1,0.0048688]
[1673918751869,7.49399848,1551.2,1551.1,0.0048688]
[1673918753239,13.94061848,1551.2,1551.1,0.0048688]
[1673918753400,15.26361848,1551.2,1551.1,0.0008688]
[1673918753784,5.17399848,1551.2,1551.1,0.0008688]
[1673918753944,3.69142407,1551.2,1551.1,0.0008688]
[1673918754144,3.60042407,1551.2,1551.1,0.0008688]
[1673918754597,5.92642407,1551.2,1551.1,0.0008688]
[1673918754814,6.01742407,1551.2,1551.1,0.0008688]
[1673918755252,1.9008,1551.2,1551.1,0.0008688]
[1673918755399,0.747,1551.2,1551.1,0.0008688]
[1673918755607,4.26882,1551.3,1551.1,0.0008688]
[1673918755870,24.9992,1551.4,1551.1,12.8949288]
[1673918756080,23.6812,1551.4,1551.1,12.9109288]
[1673918757412,0.091,1551.4,1551.1,12.9109288]
[1673918757628,0.30635317,1551.5,1551.2,3.0]
[1673918757832,0.30635317,1551.5,1551.3,19.3386]
[1673918758042,0.30635317,1551.5,1551.3,21.90012241]
[1673918758973,0.30635317,1551.5,1551.4,0.23]
[1673918759219,0.30635317,1551.5,1551.3,0.066]
[1673918759406,0.30635317,1551.5,1551.1,6.4635288]
[1673918759851,4.73797724,1551.5,1551.1,0.0168688]
[1673918760037,4.73797724,1551.5,1551.1,0.0008688]
[1673918760248,0.47379772,1551.4,1551.1,0.0008688]
[1673918761074,1.71235317,1551.5,1551.1,0.0008688]
[1673918761337,1.62135317,1551.5,1551.1,6.4478888]
[1673918761692,1.62135317,1551.5,1551.1,6.4638888]
[1673918762016,1.62135317,1551.5,1551.1,12.9109188]
[1673918764086,0.30635317,1551.5,1551.1,12.9109188]
[1673918764230,0.57798849,1551.5,1551.1,12.9109188]
[1673918765107,5.02061256,1551.5,1551.1,12.9109188]
[1673918765501,1.318,1551.2,1551.1,0.0168688]
[1673918765673,1.318,1551.2,1551.1,0.0008688]
[1673918765827,1.59817,1551.2,1551.1,0.0008688]
[1673918767667,8.02052,1551.4,1551.1,12.8949288]
[1673918767668,0.5747,1551.4,1551.1,12.8949288]
[1673918767820,23.91408849,1551.5,1551.1,12.9109288]
[1673918768034,1.15790037,1551.4,1551.1,6.4638988]
[1673918768303,3.23241411,1551.3,1551.1,0.0168688]
[1673918768517,2.314,1551.2,1551.1,0.0008688]
[1673918769670,1.314,1551.2,1551.1,0.7568688]
[1673918769821,1.41,1551.4,1551.1,13.6509288]
[1673918770041,25.23508849,1551.5,1551.1,13.6669288]
[1673918770363,23.15875317,1551.5,1551.1,13.6669288]
[1673918771145,23.15875317,1551.5,1551.1,12.91006]
[1673918772698,0.39735317,1551.5,1551.1,12.91006]
[1673918772914,1.346,1551.9,1551.4,1.323]
[1673918772915,0.091,1551.9,1551.4,1.323]
[1673918773131,23.5363,1552.2,1551.5,29.25964407]
[1673918773453,23.6273,1552.2,1551.6,3.0]
[1673918773607,3.11662407,1552.1,1551.6,16.53606918]
[1673918773817,3.11662407,1552.1,1551.6,15.90573]
[1673918774308,23.6273,1552.2,1551.6,19.02235407]
[1673918774505,23.6273,1552.2,1551.7,2.13223541]
[1673918774668,23.6273,1552.2,1551.6,19.02235407]
[1673918774669,4.43162407,1552.1,1551.6,0.066]
[1673918775026,4.43162407,1552.1,1551.5,6.46116]
[1673918775027,1.319,1551.9,1551.5,6.46116]
[1673918775243,1.0,1551.8,1551.5,6.46116]
[1673918775561,1.319,1551.9,1551.5,12.90653]
[1673918775763,1.319,1551.9,1551.5,17.96336907]
[1673918776000,9.5184,1552.1,1551.6,0.23]
[1673918776123,0.091,1552.1,1551.7,19.33299]
[1673918776475,23.6273,1552.2,1551.7,19.34899]
[1673918776884,23.6273,1552.2,1551.8,0.23]
[1673918777089,23.6273,1552.2,1551.9,19.33091]
[1673918777431,23.6273,1552.2,1551.9,19.34691]
[1673918778349,23.6273,1552.2,1551.9,12.90326]
[1673918779383,1.0,1552.1,1551.9,0.016]
[1673918779595,25.4298,1552.2,1551.9,6.44371]
[1673918779596,23.6273,1552.2,1551.9,6.44371]
[1673918779840,23.6273,1552.2,1551.9,6.45971]
[1673918780757,23.6273,1552.2,1551.9,12.90342]
[1673918781082,23.6273,1552.2,1551.9,25.72947607]
[1673918781083,0.091,1552.2,1551.9,25.72947607]
[1673918781434,0.05318078,1552.3,1552.0,7.66862407]
[1673918781601,0.05318078,1552.3,1552.1,19.32864]
[1673918781820,0.05318078,1552.3,1552.1,19.34264]
[1673918782043,0.00318078,1552.3,1552.2,17.819184]
[1673918782272,0.00318078,1552.3,1552.2,17.833184]
[1673918783324,0.00318078,1552.3,1552.2,20.94980807]
[1673918783479,0.00318078,1552.3,1552.2,21.17980807]
[1673918785097,0.00636261,1552.7,1552.2,22.49880807]
[1673918785313,0.00636261,1552.7,1552.4,19.32465]
[1673918785522,0.00636261,1552.7,1552.5,3.0]
[1673918785686,0.00636261,1552.7,1552.5,9.44086]
[1673918785896,0.00636261,1552.7,1552.5,9.45486]
[1673918786424,0.00636261,1552.7,1552.5,15.89608]
[1673918786747,0.00636261,1552.7,1552.5,18.09160442]
[1673918786964,0.00636261,1552.7,1552.6,0.23]
[1673918787199,0.00636261,1552.7,1552.6,13.1116]
[1673918787403,0.00636261,1552.7,1552.6,14.1256]
[1673918787991,0.00636261,1552.7,1552.6,13.1256]
[1673918788241,0.00636261,1552.7,1552.6,16.56278285]
[1673918789828,0.00322575,1552.7,1552.6,16.56278285]
[1673918789992,0.00322575,1552.7,1552.6,19.56278285]
[1673918791618,0.00322575,1552.7,1552.6,22.67940692]
[1673918792258,0.04909811,1552.9,1552.6,28.67766816]
[1673918792473,0.06712472,1553.5,1552.8,5.09362407]
[1673918792638,0.06712472,1553.5,1552.9,36.11780531]
[1673918792847,0.06712472,1553.5,1553.0,3.11662407]
[1673918793057,0.06712472,1553.5,1553.1,22.54595]
[1673918793369,0.06712472,1553.5,1553.1,22.32995]
[1673918793370,3.17817073,1553.4,1553.1,22.32995]
[1673918793581,0.31781707,1553.3,1553.1,15.89142]
[1673918793809,0.06154666,1553.4,1553.1,15.89142]
[1673918794200,0.06154666,1553.4,1553.1,15.89138]
[1673918794737,0.06154666,1553.4,1553.1,16.53771918]
[1673918795794,0.06154666,1553.4,1553.1,15.89138]
[1673918796151,0.06154666,1553.4,1553.1,0.014]
[1673918796152,3.11662407,1553.3,1553.1,0.014]
[1673918796479,3.11662407,1553.3,1552.9,12.89254]
[1673918796480,2.49054011,1553.0,1552.9,12.89254]
[1673918797609,2.49054011,1553.0,1552.9,15.89254]
[1673918799985,2.49054011,1553.0,1552.9,16.12254]
[1673918800190,2.49054011,1553.0,1552.9,19.027968]
[1673918801614,0.091,1553.3,1552.9,22.14459207]
[1673918801827,0.06154666,1553.4,1553.1,25.75492]
[1673918801993,0.06154666,1553.4,1553.3,19.3137]
[1673918802186,0.06154666,1553.4,1553.3,19.3277]
[1673918802397,0.06154666,1553.4,1553.3,22.3277]
[1673918804137,0.80854666,1553.4,1553.3,0.014]
[1673918804290,0.9444238,1553.4,1553.2,3.0]
[1673918804874,1.0,1553.3,1553.2,3.0]
[1673918805042,1.0,1553.3,1553.1,6.50443]
[1673918805253,11.03766407,1553.3,1553.1,0.014]
[1673918805458,11.12866407,1553.3,1552.8,6.45368]
[1673918805673,1.11286641,1553.2,1552.8,6.45368]
[1673918805906,1.11286641,1553.2,1552.8,6.45168]
[1673918805907,1.11486641,1553.2,1552.8,6.45168]
[1673918806119,1.11286641,1553.2,1552.8,6.45368]
[1673918806420,1.11286641,1553.2,1552.8,12.89342]
[1673918806677,1.11286641,1553.2,1552.9,3.0]
[1673918806864,0.11128664,1553.1,1552.9,3.0]
[1673918807364,0.091,1553.3,1552.9,3.0]
[1673918807573,24.0562238,1553.4,1552.9,15.87899]
[1673918807574,24.1472238,1553.4,1552.9,15.87899]
[1673918807946,0.4831,1553.3,1552.9,15.89299]
[1673918808890,24.6303238,1553.4,1552.9,15.89299]
[1673918809513,24.01134666,1553.4,1553.0,0.23]
[1673918809837,24.01134666,1553.4,1553.1,19.31595]
[1673918809995,24.01134666,1553.4,1553.2,9.43806]
[1673918810203,24.01134666,1553.4,1553.2,9.45206]
[1673918810652,0.15254666,1553.4,1553.2,9.45206]
[1673918810828,0.06154666,1553.4,1553.2,17.484651]
[1673918811942,0.06154666,1553.4,1553.3,0.986]
[1673918812094,0.06154666,1553.4,1553.3,1.986]
[1673918812310,0.06154666,1553.4,1553.3,13.8618]
[1673918812515,0.06154666,1553.4,1553.3,10.2079]
[1673918813262,2.49029854,1553.2,1553.1,3.0]
[1673918813499,2.73932839,1553.2,1553.1,3.0]
[1673918813666,2.73932839,1553.2,1553.0,3.066]
[1673918813876,2.73932839,1553.2,1553.0,3.0]
[1673918814342,2.73932839,1553.2,1552.9,6.50515]
[1673918814678,2.73932839,1553.2,1552.9,6.45115]
[1673918815924,2.73932839,1553.2,1552.9,0.012]
[1673918816242,0.75713284,1553.1,1552.8,0.012]
[1673918816469,0.75713284,1553.1,1552.7,6.44035]
[1673918816647,0.27393284,1553.1,1552.7,0.012]
[1673918816821,6.71268284,1553.1,1552.6,6.4524]
[1673918817034,0.36493284,1553.1,1552.6,12.8932]
[1673918817245,26.23509854,1553.2,1552.6,16.00982407]
[1673918818038,26.23509854,1553.2,1552.8,12.87954]
[1673918818187,26.23509854,1553.2,1552.8,12.89154]
[1673918819929,26.23509854,1553.2,1552.8,16.00816407]
[1673918820138,26.23509854,1553.2,1552.9,3.23]
[1673918820407,26.23509854,1553.2,1553.0,12.8783]
[1673918820721,2.58129854,1553.2,1553.1,3.0]
[1673918820936,2.58129854,1553.2,1553.1,16.10746]
[1673918820937,2.49029854,1553.2,1553.1,16.10746]
[1673918821238,2.49029854,1553.2,1553.1,16.11946]
[1673918822480,2.49029854,1553.2,1553.1,15.88946]
[1673918822697,2.73932839,1553.2,1553.1,0.012]
[1673918822921,2.73932839,1553.2,1553.0,0.012]
[1673918823100,2.73932839,1553.2,1552.9,6.45123]
[1673918823318,3.67919627,1553.2,1552.9,6.45123]
[1673918823926,2.49029854,1553.2,1552.9,12.89079]
[1673918824292,2.49029854,1553.2,1553.0,3.11662407]
[1673918824518,2.49029854,1553.2,1553.1,19.31619]
[1673918824659,2.49029854,1553.2,1553.1,22.32819]
[1673918824864,2.49029854,1553.2,1553.1,9.45073]
[1673918825080,2.83331518,1553.2,1553.1,3.012]
[1673918825289,2.49029854,1553.2,1553.1,3.0]
[1673918825603,2.49229854,1553.2,1553.1,3.0]
[1673918825901,2.49029854,1553.2,1553.1,3.0]
[1673918826062,2.49029854,1553.2,1553.1,15.87746]
[1673918826276,2.49029854,1553.2,1553.1,15.88946]
[1673918826445,2.49029854,1553.2,1553.1,22.11819907]
[1673918827527,2.49029854,1553.2,1553.1,19.001575]
[1673918827739,2.49029854,1553.2,1553.1,16.11946]
[1673918827955,2.49029854,1553.2,1553.1,19.23608407]
[1673918828279,2.49029854,1553.2,1553.1,16.11946]
[1673918828703,2.49029854,1553.2,1553.1,15.88946]
[1673918828918,2.49029854,1553.2,1553.1,16.11946]
[1673918829279,2.49029854,1553.2,1553.1,17.44246]
[1673918829944,2.49029854,1553.2,1553.1,17.21246]
[1673918830156,2.49029854,1553.2,1553.1,6.45073]
[1673918830977,2.49029854,1553.2,1553.1,0.012]
[1673918831198,2.49029854,1553.2,1553.0,6.4508]
[1673918831403,2.49029854,1553.2,1553.1,3.0]
[1673918834181,2.49029854,1553.2,1553.1,15.87746]
[1673918834387,2.49029854,1553.2,1553.1,15.88946]
[1673918834980,2.49029854,1553.2,1553.1,9.45073]
[1673918836287,2.73932839,1553.2,1553.1,3.0098389]
[1673918836596,2.73932839,1553.2,1553.1,2.9978389]
[1673918837123,8.39359214,1553.2,1553.0,0.066]
[1673918837344,13.80834034,1553.2,1552.7,12.88039]
[1673918837654,0.83935921,1553.1,1552.7,12.89239]
[1673918838072,29.52329627,1553.2,1552.7,19.33278]
[1673918838383,2.53779025,1553.1,1552.7,6.45217]
[1673918838575,1.0,1553.0,1552.7,0.012]
[1673918838792,1.0,1553.0,1552.6,12.89294]
[1673918838793,1.4832,1553.0,1552.6,12.89294]
[1673918838958,17.47816407,1553.0,1552.6,0.012]
[1673918839168,1.74781641,1552.9,1552.5,6.45287]
[1673918839439,17.50903195,1553.0,1552.5,6.45287]
[1673918839440,10.12997407,1553.0,1552.5,6.45287]
[1673918839611,11.12997407,1553.0,1552.5,6.45287]
[1673918839815,10.12997407,1553.0,1552.5,6.45287]
[1673918840047,10.12997407,1553.0,1552.5,12.89409]
[1673918840287,10.12997407,1553.0,1552.6,3.0]
[1673918840288,11.12997407,1553.0,1552.6,3.0]
[1673918840529,1.11299741,1552.9,1552.6,3.0]
[1673918841621,2.11299741,1552.9,1552.6,3.0]
[1673918842661,1.4833,1552.8,1552.6,3.0]
[1673918843091,1.0,1552.8,1552.6,3.0]
[1673918843822,16.99682407,1552.8,1552.6,3.0]
[1673918843978,1.69968241,1552.7,1552.4,0.066]
[1673918844172,0.4833,1552.6,1552.3,0.14262902]
[1673918844556,1.4833,1552.6,1552.3,0.14262902]
[1673918847605,0.4833,1552.6,1552.3,6.58466902]
[1673918847851,8.23108241,1552.7,1552.3,14.36371902]
[1673918847852,0.091,1552.7,1552.3,14.36371902]
[1673918848073,24.6567,1552.8,1552.5,19.32366]
[1673918848236,24.6567,1552.8,1552.5,20.65466]
[1673918848237,0.091,1552.8,1552.5,20.65466]
[1673918848442,23.7483,1553.1,1552.6,3.87633918]
[1673918848719,23.8393,1553.1,1552.7,19.32065]
[1673918849028,23.8393,1553.1,1552.7,19.97898918]
[1673918850177,23.8393,1553.1,1552.7,22.3052881]
[1673918850767,23.8393,1553.1,1552.7,19.97898918]
[1673918850979,3.11662407,1553.0,1552.7,0.012]
[1673918851333,3.11662407,1553.0,1552.5,6.50722]
[1673918851334,6.43956,1552.9,1552.5,6.50722]
[1673918851505,1.4833,1552.8,1552.5,6.45322]
[1673918851718,0.801386,1552.8,1552.5,6.45322]
[1673918852439,1.801386,1552.8,1552.5,6.45322]
[1673918853064,0.801386,1552.8,1552.5,6.45322]
[1673918853540,0.5742,1552.9,1552.5,12.89444]
[1673918853772,0.4832,1553.0,1552.5,12.89444]
[1673918853969,0.4832,1553.0,1552.6,3.0]
[1673918854124,0.4832,1553.0,1552.7,19.32097]
[1673918854483,0.4832,1553.0,1552.7,19.33297]
[1673918855305,1.4832,1553.0,1552.7,19.33297]
[1673918855498,0.4832,1553.0,1552.7,19.33297]
[1673918855915,23.3561,1553.1,1552.7,21.571667]
[1673918856239,23.3561,1553.1,1552.9,6.43956]
[1673918856405,0.091,1553.1,1552.9,6.45156]
[1673918856647,4.22252839,1553.2,1552.9,6.45156]
[1673918856877,3.11662407,1553.1,1552.9,0.012]
[1673918857135,1.05866241,1553.0,1552.8,3.012]
[1673918857480,8.49782241,1553.0,1552.7,3.066]
[1673918857772,8.49782241,1553.0,1552.6,6.50659]
[1673918857773,11.70544648,1553.0,1552.6,6.50659]
[1673918857988,3.59982407,1552.9,1552.6,0.012]
[1673918858178,16.35654648,1552.8,1552.3,0.14262902]
[1673918858528,16.44754648,1552.8,1552.3,0.14262902]
[1673918858894,3.11662407,1552.7,1552.3,0.14262902]
[1673918859218,1.0,1552.6,1552.3,0.14262902]
[1673918859554,0.1,1552.5,1552.3,0.14262902]
[1673918860242,6.53197,1552.6,1552.3,0.14262902]
[1673918860243,0.091,1552.6,1552.5,0.75885546]
[1673918860451,0.4833,1552.7,1552.5,0.75885546]
[1673918860705,3.59992407,1552.7,1552.5,0.00285546]
[1673918860915,16.48081407,1552.7,1552.5,0.00285546]
[1673918861127,8.08888141,1552.6,1552.5,0.00285546]
[1673918861276,8.17988141,1552.6,1552.5,0.00285546]
[1673918861959,14.62068141,1552.6,1552.5,0.00285546]
[1673918862280,15.62068141,1552.6,1552.5,0.00285546]
[1673918862641,14.62068141,1552.6,1552.5,0.00285546]
[1673918862970,15.62068141,1552.6,1552.5,0.00285546]
[1673918863742,14.62068141,1552.6,1552.5,0.00285546]
[1673918865178,14.62068141,1552.6,1552.3,0.14262902]
[1673918865179,0.00093362,1552.5,1552.3,0.14262902]
[1673918867269,12.9726,1552.6,1552.5,0.0015462]
[1673918867473,15.22556141,1552.6,1552.5,0.0015462]
[1673918868946,12.9726,1552.6,1552.5,0.7575462]
[1673918869203,13.9726,1552.6,1552.5,0.0015462]
[1673918869518,12.9726,1552.6,1552.5,0.0015462]
[1673918869908,13.9726,1552.6,1552.5,0.0015462]
[1673918870532,12.9726,1552.6,1552.5,0.0015462]
[1673918871469,15.22556141,1552.6,1552.5,0.0015462]
[1673918872531,12.9726,1552.6,1552.5,0.0015462]
[1673918872947,12.9726,1552.6,1552.5,0.7575462]
[1673918873176,12.9726,1552.6,1552.5,0.0015462]
[1673918875151,13.9726,1552.6,1552.5,0.0015462]
[1673918875521,12.9726,1552.6,1552.5,0.0015462]
[1673918875672,13.9726,1552.6,1552.5,0.0015462]
[1673918876006,15.32556141,1552.6,1552.5,0.0015462]
[1673918876422,8.88476141,1552.6,1552.5,0.0015462]
[1673918876772,6.5318,1552.6,1552.5,0.7575462]
[1673918876942,0.091,1552.6,1552.5,0.7575462]
[1673918877160,6.44039,1552.7,1552.5,0.7575462]
[1673918877161,6.53139,1552.7,1552.5,0.7575462]
[1673918878648,0.091,1552.7,1552.5,0.7575462]
[1673918878912,30.39554,1552.8,1552.5,2.0715462]
[1673918878913,24.0463,1552.8,1552.5,2.0715462]
[1673918879030,24.0463,1552.8,1552.6,0.20715462]
[1673918880085,23.9963,1552.8,1552.6,0.20715462]
[1673918880291,23.9963,1552.8,1552.5,4.38688567]
[1673918880500,39.99300407,1552.8,1552.5,3.0015462]
[1673918880712,39.99300407,1552.8,1552.5,0.0015462]
[1673918880964,6.4408,1552.6,1552.5,0.0015462]
[1673918881181,6.5318,1552.6,1552.5,0.0015462]
[1673918881603,7.929033,1552.6,1552.5,0.0015462]
[1673918881821,14.369833,1552.6,1552.5,0.0015462]
[1673918882343,7.929033,1552.6,1552.5,0.0015462]
[1673918882566,8.929033,1552.6,1552.5,0.0015462]
[1673918882706,18.48645707,1552.6,1552.5,0.0015462]
[1673918883611,19.42632495,1552.6,1552.5,0.0015462]
[1673918883812,18.48645707,1552.6,1552.5,0.0015462]
[1673918884022,18.96975707,1552.6,1552.5,0.0015462]
[1673918884240,18.48645707,1552.6,1552.5,0.0015462]
[1673918884451,19.42632495,1552.6,1552.5,0.0015462]
[1673918884602,21.02471855,1552.6,1552.5,0.0015462]
[1673918885247,22.81722056,1552.6,1552.5,0.0015462]
[1673918885460,23.30052056,1552.6,1552.5,0.0015462]
[1673918885659,25.42301201,1552.6,1552.5,0.0015462]
[1673918886289,26.36632961,1552.6,1552.5,0.0015462]
[1673918886506,24.95695972,1552.6,1552.5,0.0015462]
[1673918886719,26.36632961,1552.6,1552.5,0.0015462]
[1673918887282,22.63395972,1552.6,1552.5,0.0015462]
[1673918887470,16.57252407,1552.6,1552.5,0.0015462]
[1673918889088,1.0,1552.5,1552.3,0.11681897]
[1673918889293,6.44163,1552.4,1552.3,0.11681897]
[1673918889453,6.53263,1552.4,1552.3,0.11681897]
[1673918889663,6.53263,1552.4,1552.3,0.87281897]
[1673918890768,6.53263,1552.4,1552.3,0.11681897]
[1673918892022,6.03263,1552.4,1552.3,0.11681897]
[1673918892548,9.14925407,1552.4,1552.3,0.11681897]
[1673918892764,15.59088407,1552.4,1552.3,0.11681897]
[1673918893336,0.091,1552.4,1552.3,0.87281897]
[1673918893549,6.44145,1552.5,1552.3,0.87281897]
[1673918893550,6.53245,1552.5,1552.3,0.87281897]
[1673918894508,6.53245,1552.5,1552.3,0.97436377]
[1673918895290,6.53245,1552.5,1552.3,0.87281897]
[1673918896786,0.091,1552.5,1552.4,1.314]
[1673918896968,6.44077,1552.7,1552.4,1.314]
[1673918896969,0.091,1552.7,1552.4,1.314]
[1673918897129,18.31097986,1553.0,1552.5,1.4544]
[1673918897130,40.84170749,1553.0,1552.5,1.4544]
[1673918897478,23.4837176,1553.0,1552.5,17.3364]
[1673918897832,0.091,1553.0,1552.9,1.313]
[1673918898132,3.43361614,1553.2,1552.9,5.313]
[1673918898296,2.49029854,1553.2,1553.0,1.8543]
[1673918898515,2.49029854,1553.2,1553.1,1.311]
[1673918898728,2.49029854,1553.2,1553.1,4.311]
[1673918899261,2.49229854,1553.2,1553.1,4.311]
[1673918899445,2.49029854,1553.2,1553.1,4.311]
[1673918899648,2.49029854,1553.2,1553.1,4.90183]
[1673918900121,2.49029854,1553.2,1553.1,5.90183]
[1673918900369,2.49029854,1553.2,1553.1,5.91383]
[1673918900915,2.49029854,1553.2,1553.1,4.91383]
[1673918901288,2.49029854,1553.2,1553.1,4.90183]
[1673918902338,2.49029854,1553.2,1553.1,12.57056]
[1673918902526,2.49029854,1553.2,1553.1,12.58256]
[1673918903398,2.49029854,1553.2,1553.1,19.02129]
[1673918903826,2.49029854,1553.2,1553.1,18.02129]
[1673918905450,2.49029854,1553.2,1553.1,21.13791407]
[1673918905827,2.49029854,1553.2,1553.1,22.46091407]
[1673918908421,2.49029854,1553.2,1553.1,21.14991407]
[1673918908872,2.49029854,1553.2,1553.1,22.46891407]
[1673918910295,2.49029854,1553.2,1553.1,3.012]
[1673918910507,2.49029854,1553.2,1553.1,3.0]
[1673918911491,2.49029854,1553.2,1553.0,3.066]
[1673918911719,2.49029854,1553.2,1553.0,9.43911]
[1673918911867,2.49029854,1553.2,1553.0,9.45111]
[1673918912747,0.63564666,1553.4,1553.0,9.45111]
[1673918913013,0.54464666,1553.4,1553.0,9.45111]
[1673918913201,0.06154666,1553.4,1553.0,9.45111]
[1673918913338,0.06154666,1553.4,1553.0,11.689529]
[1673918913970,0.06154666,1553.4,1553.0,14.80615307]
[1673918914213,0.06154666,1553.4,1553.1,2.32]
[1673918914437,0.06154666,1553.4,1553.1,1.312]
[1673918914606,0.06154666,1553.4,1553.2,6.43832]
[1673918914820,0.06154666,1553.4,1553.3,3.0]
[1673918915280,0.06154666,1553.4,1553.2,3.066]
[1673918915438,0.06154666,1553.4,1553.2,3.0]
[1673918915860,0.06154666,1553.4,1553.1,3.066]
[1673918916108,7.1647388,1553.4,1553.1,3.0]